fUST/lending_fUST_20240119
["ID","MTS","AMOUNT","RATE_DAILY","PERIOD"]
[312080311,1705603842196,-250.0,0.00041094,7]
[312080312,1705603842206,-500.0,0.00041095,30]
[312080313,1705603842215,-500.0,0.00041095,30]
[312080314,1705603842224,-500.0,0.00041095,30]
[312080315,1705603842233,-1631.44328212,0.00041095,30]
[312080316,1705603842242,-500.0,0.00041095,7]
[312080317,1705603842251,-500.0,0.00041095,30]
[312080318,1705603842260,-500.0,0.00041095,30]
[312080319,1705603842270,-284.79997456,0.00041095,30]
[312080320,1705603842279,-500.0,0.00041095,30]
[312080321,1705603842288,-500.0,0.00041095,30]
[312080322,1705603842298,-500.0,0.00041095,30]
[312080323,1705603842307,-502.17638067,0.00041095,30]
[312080324,1705603842317,-200.0,0.00041095,30]
[312080325,1705603842326,-631.7872854,0.00041095,30]
[312080326,1705603842335,-500.0,0.00041095,30]
[312080327,1705603842345,-500.0,0.00041095,30]
[312080328,1705603842354,-500.0,0.00041095,30]
[312080329,1705603842363,-500.0,0.00041095,30]
[312080330,1705603842373,-513.00699757,0.00041095,30]
[312080331,1705603842382,-500.0,0.00041095,30]
[312080332,1705603842391,-500.0,0.00041095,30]
[312080333,1705603842400,-500.0,0.00041095,30]
[312080334,1705603842413,-500.0,0.00041095,30]
[312080335,1705603842423,-500.0,0.00041095,30]
[312080336,1705603842432,-510.76894001,0.00041095,30]
[312080337,1705603842441,-502.20252992,0.00041095,30]
[312080338,1705603842451,-500.0,0.00041095,30]
[312080339,1705603842460,-500.0,0.00041095,30]
[312080340,1705603842470,-500.0,0.00041095,30]
[312080341,1705603842479,-150.0,0.00041095,30]
[312080342,1705603842489,-501.36601449,0.00041095,30]
[312080343,1705603842499,-599.03146019,0.00041095,30]
[312080344,1705603842508,-500.97903448,0.00041095,30]
[312080345,1705603842518,-512.68900312,0.00041095,30]
[312080346,1705603842527,-500.0,0.00041095,30]
[312080347,1705603842536,-500.0,0.00041095,30]
[312080348,1705603842545,-500.0,0.00041095,30]
[312080349,1705603842554,-500.0,0.00041095,30]
[312080350,1705603842564,-221.30751281,0.00041095,30]
[312080351,1705603842573,-500.0,0.00041095,30]
[312080352,1705603842582,-504.2170462,0.00041095,30]
[312080353,1705603842591,-500.0,0.00041095,30]
[312080355,1705603842601,-500.0,0.00041095,30]
[312080357,1705603842610,-500.0,0.00041095,30]
[312080359,1705603842619,-500.0,0.00041095,30]
[312080361,1705603842628,-500.0,0.00041095,30]
[312080362,1705603842637,-500.0,0.00041095,30]
[312080363,1705603842646,-500.0,0.00041095,30]
[312080364,1705603842658,-500.0,0.00041095,30]
[312080365,1705603842666,-500.0,0.00041095,30]
[312080366,1705603842675,-1656.06,0.00041095,30]
[312080367,1705603842684,-500.0,0.00041095,30]
[312080368,1705603842693,-500.0,0.00041095,7]
[312080369,1705603842703,-500.0,0.00041095,30]
[312080370,1705603842711,-500.0,0.00041095,30]
[312080371,1705603842720,-500.0,0.00041095,2]
[312080372,1705603842729,-500.0,0.00041095,30]
[312080373,1705603842738,-500.0,0.00041095,30]
[312080374,1705603842749,-500.0,0.00041095,30]
[312080375,1705603842758,-500.0,0.00041095,30]
[312080376,1705603842767,-1000.0,0.00041095,2]
[312080378,1705603842776,-500.0,0.00041095,30]
[312080380,1705603842786,-500.0,0.00041095,30]
[312080381,1705603842795,-500.59002617,0.00041095,2]
[312080382,1705603842804,-500.0,0.00041095,30]
[312080383,1705603842813,-510.96602421,0.00041095,30]
[312080384,1705603842821,-500.0,0.00041095,30]
[312080385,1705603842830,-616.35,0.00041095,30]
[312080386,1705603842840,-500.0,0.00041095,30]
[312080387,1705603842849,-500.0,0.00041095,30]
[312080388,1705603842859,-390.58929485,0.00041095,30]
[312080389,1705603842867,-350.0,0.00041095,30]
[312080390,1705603842876,-500.0,0.00041095,30]
[312080391,1705603842885,-500.0,0.00041095,30]
[312080393,1705603842894,-500.0,0.00041095,30]
[312080395,1705603842904,-810.81,0.00041095,30]
[312080397,1705603842915,-501.611874,0.00041095,30]
[312080399,1705603842924,-430.98156131,0.00041095,30]
[312080401,1705603842933,-500.0,0.00041095,30]
[312080403,1705603842943,-500.74137746,0.00041095,30]
[312080405,1705603842952,-500.0,0.00041095,30]
[312080407,1705603842962,-320.66214858,0.00041095,30]
[312080409,1705603842971,-373.5142545,0.00041095,30]
[312080411,1705603842980,-500.0,0.00041095,30]
[312080413,1705603842988,-500.0,0.00041095,30]
[312080415,1705603842998,-500.0,0.00041095,30]
[312080417,1705603843007,-1000.0,0.00041095,2]
[312080419,1705603843016,-220.29516011,0.00041095,2]
[312080421,1705603843026,-500.0,0.00041095,2]
[312080423,1705603843035,-500.0,0.00041095,30]
[312080425,1705603843045,-500.0,0.00041095,30]
[312080427,1705603843054,-500.0,0.00041095,30]
[312080429,1705603843063,-500.0,0.00041095,30]
[312080431,1705603843072,-500.0,0.00041095,30]
[312080433,1705603843081,-501.99862729,0.00041095,30]
[312080435,1705603843091,-500.0,0.00041095,30]
[312080437,1705603843100,-500.0,0.00041095,30]
[312080439,1705603843109,-501.14796052,0.00041095,30]
[312080440,1705603843117,-500.0,0.00041095,7]
[312080442,1705603843126,-500.0,0.00041095,30]
[312080444,1705603843135,-508.23651384,0.00041095,30]
[312080446,1705603843145,-500.77064087,0.00041095,30]
[312080448,1705603843154,-552.07,0.00041095,30]
[312080452,1705603843164,-516.7,0.00041095,30]
[312080456,1705603843174,-500.0,0.00041095,30]
[312080460,1705603843183,-500.0,0.00041095,30]
[312080463,1705603843193,-500.0,0.00041095,30]
[312080466,1705603843203,-499.88527745,0.00041095,30]
[312080469,1705603843212,-500.0,0.00041095,30]
[312080472,1705603843222,-368.2554672,0.00041095,30]
[312080475,1705603843231,-500.0,0.00041095,30]
[312080478,1705603843240,-500.55436778,0.00041095,30]
[312080481,1705603843249,-500.0,0.00041095,30]
[312080483,1705603843258,-513.76,0.00041095,30]
[312080485,1705603843267,-500.0,0.00041095,30]
[312080487,1705603843276,-500.0,0.00041095,30]
[312080489,1705603843285,-500.0,0.00041095,30]
[312080491,1705603843294,-536.72114219,0.00041095,30]
[312080493,1705603843303,-10000.0,0.00041095,10]
[312080495,1705603843312,-500.0,0.00041095,30]
[312080497,1705603843321,-503.4258123,0.00041095,30]
[312080498,1705603843330,-500.0,0.00041095,30]
[312080500,1705603843340,-500.0,0.00041095,30]
[312080502,1705603843349,-500.0,0.00041095,30]
[312080504,1705603843358,-1000.0,0.00041095,5]
[312080506,1705603843367,-500.0,0.00041095,30]
[312080508,1705603843376,-500.0,0.00041095,30]
[312080510,1705603843385,-1420.65,0.00041095,30]
[312080512,1705603843394,-500.0,0.00041095,30]
[312080514,1705603843403,-500.0,0.00041095,30]
[312080516,1705603843413,-512.38150394,0.00041095,30]
[312080518,1705603843422,-500.0,0.00041095,30]
[312080520,1705603843431,-500.0,0.00041095,30]
[312080522,1705603843440,-500.0,0.00041095,30]
[312080524,1705603843449,-500.0,0.00041095,30]
[312080526,1705603843458,-500.0,0.00041095,30]
[312080528,1705603843467,-500.0,0.00041095,30]
[312080530,1705603843476,-504.10090729,0.00041095,30]
[312080532,1705603843484,-559.6452671,0.00041095,30]
[312080534,1705603843494,-500.0,0.00041095,30]
[312080536,1705603843503,-500.0,0.00041095,30]
[312080538,1705603843512,-1063.55,0.00041095,30]
[312080540,1705603843521,-500.0,0.00041095,30]
[312080542,1705603843531,-569.78275668,0.00041095,30]
[312080544,1705603843540,-500.0,0.00041095,30]
[312080546,1705603843549,-513.67836503,0.00041095,30]
[312080548,1705603843558,-500.0,0.00041095,30]
[312080550,1705603843567,-500.0,0.00041095,30]
[312080552,1705603843577,-500.0,0.00041095,30]
[312080554,1705603843586,-500.0,0.00041095,30]
[312080556,1705603843595,-555.4,0.00041095,30]
[312080558,1705603843604,-561.4,0.00041095,30]
[312080560,1705603843614,-561.4,0.00041095,30]
[312080562,1705603843623,-561.4,0.00041095,30]
[312080564,1705603843633,-561.4,0.00041095,30]
[312080566,1705603843642,-561.4,0.00041095,30]
[312080568,1705603843651,-561.4,0.00041095,30]
[312080570,1705603843662,-500.0,0.00041095,30]
[312080572,1705603843670,-561.4,0.00041095,30]
[312080574,1705603843679,-561.4,0.00041095,30]
[312080576,1705603843688,-500.0,0.00041095,30]
[312080578,1705603843696,-500.0,0.00041095,30]
[312080580,1705603843705,-500.0,0.00041095,30]
[312080582,1705603843714,-500.0,0.00041095,30]
[312080584,1705603843723,-500.0,0.00041095,30]
[312080586,1705603843732,-500.58898887,0.00041095,30]
[312080588,1705603843741,-502.49825283,0.00041095,30]
[312080590,1705603843750,-500.0,0.00041095,30]
[312080592,1705603843762,-579.25,0.00041095,30]
[312080594,1705603843771,-500.0,0.00041095,30]
[312080596,1705603843780,-500.0,0.00041095,30]
[312080604,1705603843852,-500.0,0.00041095,30]
[312080606,1705603843861,-517.81268259,0.00041095,30]
[312080608,1705603843870,-500.0,0.00041095,30]
[312080610,1705603843879,-500.0,0.00041095,30]
[312080612,1705603843888,-2352.24,0.00041095,30]
[312080614,1705603843897,-531.75097436,0.00041095,30]
[312080616,1705603843907,-501.68443412,0.00041095,30]
[312080618,1705603843916,-502.8011451,0.00041095,30]
[312080620,1705603843925,-500.0,0.00041095,30]
[312080622,1705603843934,-226.24686039,0.00041095,30]
[312080624,1705603843943,-500.0,0.00041095,30]
[312080626,1705603843953,-500.74779451,0.00041095,30]
[312080628,1705603843962,-223.54362701,0.00041095,30]
[312080630,1705603843971,-1759.21,0.00041095,30]
[312080632,1705603843980,-500.0,0.00041095,30]
[312080634,1705603843989,-500.0,0.00041095,7]
[312080636,1705603843998,-500.0,0.00041095,30]
[312080638,1705603844007,-500.0,0.00041095,30]
[312080640,1705603844016,-584.61,0.00041095,30]
[312080642,1705603844025,-584.61,0.00041095,30]
[312080644,1705603844034,-584.61,0.00041095,30]
[312080646,1705603844044,-584.61,0.00041095,30]
[312080648,1705603844053,-2130.05,0.00041095,30]
[312080650,1705603844062,-584.61,0.00041095,30]
[312080652,1705603844071,-584.61,0.00041095,30]
[312080654,1705603844080,-500.0,0.00041095,30]
[312080656,1705603844089,-584.61,0.00041095,30]
[312080658,1705603844098,-584.61,0.00041095,30]
[312080660,1705603844107,-500.0,0.00041095,30]
[312080661,1705603844116,-550.0,0.00041095,30]
[312080663,1705603844125,-502.46348243,0.00041095,30]
[312080665,1705603844133,-500.0,0.00041095,30]
[312080666,1705603844142,-500.0,0.00041095,30]
[312080668,1705603844152,-539.53667564,0.00041095,30]
[312080670,1705603844161,-553.2,0.00041095,30]
[312080672,1705603844170,-500.0,0.00041095,30]
[312080673,1705603844180,-500.0,0.00041095,30]
[312080675,1705603844189,-500.0,0.00041095,30]
[312080677,1705603844198,-1155.64,0.00041095,30]
[312080679,1705603844207,-500.0,0.00041095,30]
[312080681,1705603844220,-500.0,0.00041095,30]
[312080683,1705603844229,-502.2126617,0.00041095,30]
[312080684,1705603844237,-502.02270578,0.00041095,30]
[312080686,1705603844247,-507.34713246,0.00041095,30]
[312080688,1705603844257,-509.39814518,0.00041095,30]
[312080689,1705603844271,-527.4649401,0.00041095,30]
[312080690,1705603844282,-568.12,0.00041095,30]
[312080691,1705603844291,-500.0,0.00041095,30]
[312080692,1705603844300,-509.42332748,0.00041095,30]
[312080693,1705603844309,-584.52617011,0.00041095,30]
[312080694,1705603844318,-500.62077574,0.00041095,30]
[312080695,1705603844327,-340.05528394,0.00041095,30]
[312080697,1705603844336,-500.0,0.00041095,30]
[312080698,1705603844345,-500.0,0.00041095,30]
[312080699,1705603844354,-202.96825534,0.00041095,30]
[312080700,1705603844363,-847.91,0.00041095,30]
[312080701,1705603844372,-500.0,0.00041095,30]
[312080702,1705603844382,-500.0,0.00041095,30]
[312080703,1705603844391,-500.0,0.00041095,30]
[312080704,1705603844401,-500.0,0.00041095,30]
[312080705,1705603844411,-500.0,0.00041095,30]
[312080706,1705603844419,-3756.53,0.00041095,30]
[312080707,1705603844428,-500.0,0.00041095,30]
[312080708,1705603844438,-501.76193937,0.00041095,30]
[312080709,1705603844447,-500.0,0.00041095,30]
[312080710,1705603844456,-501.81380151,0.00041095,30]
[312080711,1705603844465,-500.0,0.00041095,30]
[312080712,1705603844474,-500.91720663,0.00041095,30]
[312080713,1705603844483,-500.0,0.00041095,30]
[312080714,1705603844493,-500.0,0.00041095,30]
[312080715,1705603844502,-500.0,0.00041095,30]
[312080716,1705603844511,-500.0,0.00041095,30]
[312080717,1705603844520,-500.0,0.00041095,30]
[312080718,1705603844530,-1085.36,0.00041095,30]
[312080719,1705603844539,-22925.6,0.00041095,14]
[312080720,1705603844548,-522.43826179,0.00041095,30]
[312080721,1705603844557,-500.0,0.00041095,30]
[312080722,1705603844566,-604.12574127,0.00041095,30]
[312080723,1705603844575,-500.0,0.00041095,30]
[312080724,1705603844585,-500.0,0.00041095,30]
[312080725,1705603844594,-500.0,0.00041095,30]
[312080726,1705603844603,-500.0,0.00041095,30]
[312080727,1705603844611,-500.0,0.00041095,30]
[312080728,1705603844621,-437.56994933,0.00041095,30]
[312080729,1705603844631,-500.0,0.00041095,30]
[312080730,1705603844641,-3231.72,0.00041095,30]
[312080731,1705603844650,-500.0,0.00041095,30]
[312080732,1705603844659,-500.0,0.00041095,30]
[312080733,1705603844668,-2764.19,0.00041095,30]
[312080734,1705603844677,-502.61124632,0.00041095,30]
[312080735,1705603844686,-500.37519459,0.00041095,30]
[312080736,1705603844695,-500.0,0.00041095,30]
[312080737,1705603844704,-500.0,0.00041095,30]
[312080738,1705603844713,-500.0,0.00041095,30]
[312080739,1705603844722,-537.79368713,0.00041095,30]
[312080740,1705603844731,-500.0,0.00041095,30]
[312080741,1705603844741,-500.0,0.00041095,30]
[312080742,1705603844750,-5928.36,0.00041095,30]
[312080743,1705603844760,-500.0,0.00041095,30]
[312080744,1705603844769,-500.0,0.00041095,30]
[312080745,1705603844780,-502.1530719,0.00041095,30]
[312080746,1705603844790,-500.0,0.00041095,30]
[312080747,1705603844799,-500.0,0.00041095,30]
[312080748,1705603844808,-500.0,0.00041095,30]
[312080749,1705603844817,-500.0,0.00041095,30]
[312080750,1705603844827,-500.0,0.00041095,30]
[312080751,1705603844839,-500.0,0.00041095,30]
[312080752,1705603844848,-500.0,0.00041095,30]
[312080753,1705603844857,-1089.79,0.00041095,30]
[312080754,1705603844866,-500.0,0.00041095,30]
[312080755,1705603844875,-503.91176683,0.00041095,30]
[312080756,1705603844884,-696.8,0.00041095,30]
[312080757,1705603844893,-500.0,0.00041095,30]
[312080758,1705603844902,-500.0,0.00041095,30]
[312080759,1705603844913,-613.20896247,0.00041095,30]
[312080760,1705603844923,-230.7888052,0.00041095,30]
[312080761,1705603844932,-627.8606387,0.00041095,30]
[312080762,1705603844941,-531.57493587,0.00041095,30]
[312080763,1705603844950,-500.0,0.00041095,30]
[312080764,1705603844959,-500.53372034,0.00041095,30]
[312080765,1705603844970,-500.0,0.00041095,30]
[312080766,1705603844979,-912.24,0.00041095,30]
[312080767,1705603844988,-13052.35,0.00041095,30]
[312080768,1705603844997,-502.45845128,0.00041095,30]
[312080769,1705603845006,-511.48491375,0.00041095,30]
[312080770,1705603845015,-501.31020996,0.00041095,30]
[312080771,1705603845024,-500.0,0.00041095,30]
[312080772,1705603845033,-500.0,0.00041095,30]
[312080773,1705603845042,-4568.74,0.00041095,30]
[312080774,1705603845051,-500.0,0.00041095,30]
[312080775,1705603845060,-500.0,0.00041095,20]
[312080776,1705603845070,-500.0,0.00041095,30]
[312080777,1705603845079,-500.0,0.00041095,30]
[312080778,1705603845089,-500.0,0.00041095,30]
[312080779,1705603845099,-500.37228514,0.00041095,30]
[312080780,1705603845108,-500.0,0.00041095,30]
[312080781,1705603845118,-1070.78,0.00041095,30]
[312080782,1705603845126,-571.64,0.00041095,30]
[312080783,1705603845135,-500.0,0.00041095,30]
[312080784,1705603845144,-500.0,0.00041095,30]
[312080785,1705603845153,-500.0,0.00041095,30]
[312080786,1705603845162,-500.0,0.00041095,30]
[312080787,1705603845171,-500.0,0.00041095,30]
[312080788,1705603845181,-500.0,0.00041095,30]
[312080789,1705603845191,-1420.26,0.00041095,30]
[312080790,1705603845200,-500.0,0.00041095,30]
[312080791,1705603845212,-500.0,0.00041095,30]
[312080792,1705603845221,-500.0,0.00041095,30]
[312080793,1705603845230,-500.0,0.00041095,30]
[312080794,1705603845240,-514.21403191,0.00041095,30]
[312080795,1705603845249,-500.0,0.00041095,30]
[312080796,1705603845258,-500.0,0.00041095,30]
[312080797,1705603845268,-500.0,0.00041095,30]
[312080798,1705603845277,-1185.38,0.00041095,30]
[312080799,1705603845286,-500.0,0.00041095,30]
[312080800,1705603845295,-500.0,0.00041095,30]
[312080801,1705603845304,-230.48355744,0.00041095,30]
[312080802,1705603845314,-1002.65681219,0.00041095,2]
[312080803,1705603845389,-500.0,0.00041095,30]
[312080804,1705603845400,-500.0,0.00041095,30]
[312080805,1705603845410,-500.0,0.00041095,30]
[312080806,1705603845419,-501.46121602,0.00041095,30]
[312080807,1705603845429,-500.0,0.00041095,30]
[312080808,1705603845438,-754.42,0.00041095,30]
[312080809,1705603845448,-500.0,0.00041095,30]
[312080810,1705603845457,-926.92,0.00041095,30]
[312080811,1705603845466,-500.0,0.00041095,30]
[312080812,1705603845476,-374.27691535,0.00041095,30]
[312080813,1705603845485,-6197.69,0.00041095,30]
[312080814,1705603845494,-500.0,0.00041095,30]
[312080815,1705603845503,-500.0,0.00041095,30]
[312080816,1705603845513,-500.0,0.00041095,30]
[312080817,1705603845522,-500.0,0.00041095,30]
[312080818,1705603845531,-5474.26,0.00041095,30]
[312080819,1705603845540,-501.26033619,0.00041095,30]
[312080820,1705603845550,-500.0,0.00041095,30]
[312080821,1705603845559,-500.0,0.00041095,30]
[312080822,1705603845568,-451.05876609,0.00041095,30]
[312080823,1705603845579,-500.0,0.00041095,30]
[312080824,1705603845588,-500.0,0.00041095,30]
[312080825,1705603845597,-500.0,0.00041095,30]
[312080826,1705603845606,-500.0,0.00041095,30]
[312080827,1705603845615,-500.0,0.00041095,5]
[312080829,1705603845623,-503.59818733,0.00041095,30]
[312080831,1705603845632,-500.0,0.00041095,30]
[312080833,1705603845642,-500.53370218,0.00041095,30]
[312080834,1705603845651,-558.04977188,0.00041095,30]
[312080835,1705603845661,-500.0,0.00041095,30]
[312080836,1705603845670,-500.0,0.00041095,30]
[312080837,1705603845679,-500.0,0.00041095,30]
[312080838,1705603845688,-500.0,0.00041095,30]
[312080839,1705603845697,-1847.57,0.00041095,30]
[312080840,1705603845706,-500.0,0.00041095,30]
[312080841,1705603845716,-500.0,0.00041095,30]
[312080842,1705603845726,-500.0,0.00041095,30]
[312080843,1705603845735,-500.0,0.00041095,30]
[312080844,1705603845745,-527.63841557,0.00041095,30]
[312080845,1705603845756,-500.74341688,0.00041095,30]
[312080846,1705603845768,-704.01,0.00041095,14]
[312080847,1705603845777,-500.0,0.00041095,30]
[312080848,1705603845786,-500.0,0.00041095,30]
[312080849,1705603845795,-502.67519078,0.00041095,30]
[312080850,1705603845806,-500.0,0.00041095,30]
[312080851,1705603845814,-500.0,0.00041095,30]
[312080853,1705603845823,-2428.35,0.00041095,30]
[312080854,1705603845833,-500.0,0.00041095,30]
[312080855,1705603845843,-1541.49,0.00041095,30]
[312080856,1705603845854,-439.574732,0.00041095,30]
[312080857,1705603845863,-830.29,0.00041095,30]
[312080858,1705603845873,-500.0,0.00041095,30]
[312080860,1705603845882,-300.0,0.00041095,30]
[312080862,1705603845892,-500.0,0.00041095,30]
[312080864,1705603845901,-350.00035,0.00041095,30]
[312080866,1705603845912,-500.0,0.00041095,30]
[312080867,1705603845921,-3064.89,0.00041095,30]
[312080868,1705603845930,-392.35720764,0.00041095,30]
[312080869,1705603845939,-501.78249333,0.00041095,30]
[312080870,1705603845949,-2994.23,0.00041095,30]
[312080871,1705603845958,-500.0,0.00041095,30]
[312080872,1705603845967,-500.0,0.00041095,30]
[312080873,1705603845975,-500.0,0.00041095,30]
[312080874,1705603845984,-1947.59,0.00041095,30]
[312080875,1705603845994,-500.0,0.00041095,30]
[312080876,1705603846003,-500.0,0.00041095,30]
[312080877,1705603846012,-500.0,0.00041095,30]
[312080878,1705603846020,-500.0,0.00041095,30]
[312080879,1705603846030,-500.0,0.00041095,30]
[312080880,1705603846039,-500.0,0.00041095,2]
[312080881,1705603846048,-500.0,0.00041095,30]
[312080882,1705603846057,-500.0,0.00041095,30]
[312080883,1705603846066,-3672.248617,0.00041095,2]
[312080884,1705603846075,-3672.248617,0.00041095,2]
[312080885,1705603846084,-151.0,0.00041095,2]
[312080886,1705603846093,-266.666712,0.00041095,2]
[312080887,1705603846103,-16838.6516513,0.00041096,15]
[312080888,1705603846112,-155.06357607,0.00041096,4]
[312080889,1705603846121,-546.95952545,0.00041096,4]
[312080890,1705603846130,-178.83619526,0.00041096,4]
[312080891,1705603846139,-500.0,0.000411,3]
[312080892,1705603846148,-419.35046969,0.000411,14]
[312080893,1705603846157,-419.35046969,0.000411,14]
[312080894,1705603846169,-419.35046969,0.000411,14]
[312080895,1705603846178,-419.35046969,0.000411,14]
[312080896,1705603846187,-419.35046969,0.000411,14]
[312080897,1705603846197,-419.35046969,0.000411,14]
[312080898,1705603846206,-419.35046969,0.000411,14]
[312080899,1705603846215,-419.35046969,0.000411,14]
[312080900,1705603846223,-419.35046969,0.000411,14]
[312080901,1705603846232,-419.35046969,0.000411,14]
[312080902,1705603846241,-419.35046969,0.000411,14]
[312080903,1705603846250,-419.35046969,0.000411,14]
[312080904,1705603846259,-419.35046969,0.000411,14]
[312080905,1705603846268,-419.35046969,0.000411,14]
[312080906,1705603846277,-419.35046969,0.000411,14]
[312080907,1705603846286,-419.35046969,0.000411,14]
[312080908,1705603846295,-419.35046969,0.000411,14]
[312080909,1705603846305,-419.35046969,0.000411,14]
[312080910,1705603846314,-419.35046969,0.000411,14]
[312080911,1705603846323,-419.35,0.000411,14]
[312080912,1705603846332,-1677.40187877,0.000411,14]
[312080913,1705603846341,-1677.40187877,0.000411,14]
[312080914,1705603846350,-1677.40187877,0.000411,14]
[312080915,1705603846360,-1677.40187877,0.000411,14]
[312080916,1705603846369,-1677.40187877,0.000411,14]
[312080917,1705603846378,-1677.40187877,0.000411,14]
[312080919,1705603846387,-1677.40187877,0.000411,14]
[312080921,1705603846397,-1677.40187877,0.000411,14]
[312080922,1705603846406,-1677.40187877,0.000411,14]
[312080924,1705603846417,-1677.40187877,0.000411,14]
[312080925,1705603846426,-1677.40187877,0.000411,14]
[312080926,1705603846437,-1677.40187877,0.000411,14]
[312080927,1705603846446,-1677.40187877,0.000411,14]
[312080928,1705603846455,-1677.40187877,0.000411,14]
[312080929,1705603846464,-1677.40187877,0.000411,14]
[312080930,1705603846473,-1677.40187877,0.000411,14]
[312080931,1705603846483,-1677.40187877,0.000411,14]
[312080932,1705603846492,-1677.40187877,0.000411,14]
[312080933,1705603846502,-1677.40187877,0.000411,14]
[312080934,1705603846511,-1677.4,0.000411,14]
[312080935,1705603846520,-150.30083188,0.000411,14]
[312080936,1705603846529,-150.30083188,0.000411,14]
[312080937,1705603846538,-150.30083188,0.000411,14]
[312080938,1705603846548,-150.3,0.000411,14]
[312080939,1705603846557,-150.30083188,0.000411,14]
[312080940,1705603846566,-150.30083188,0.000411,14]
[312080941,1705603846575,-150.30083188,0.000411,14]
[312080942,1705603846584,-150.30083188,0.000411,14]
[312080943,1705603846593,-150.30083188,0.000411,14]
[312080944,1705603846603,-150.30083188,0.000411,14]
[312080945,1705603846612,-150.30083188,0.000411,14]
[312080946,1705603846622,-150.30083188,0.000411,14]
[312080947,1705603846631,-150.30083188,0.000411,14]
[312080948,1705603846639,-150.30083188,0.000411,14]
[312080949,1705603846649,-150.30083188,0.000411,14]
[312080950,1705603846658,-150.30083188,0.000411,14]
[312080951,1705603846669,-150.30083188,0.000411,14]
[312080952,1705603846680,-150.30083188,0.000411,14]
[312080953,1705603846689,-150.30083188,0.000411,14]
[312080954,1705603846699,-150.3,0.000411,14]
[312080955,1705603846708,-181.66666667,0.000411,14]
[312080956,1705603846717,-181.66666667,0.000411,14]
[312080957,1705603846726,-181.66,0.000411,14]
[312080958,1705603846735,-199.14077369,0.000411,14]
[312080959,1705603846806,-199.14,0.000411,14]
[312080960,1705603846816,-151.0,0.00041123,21]
[312080961,1705603846825,-151.0,0.00041153,21]
[312080962,1705603846836,-151.0,0.00041182,21]
[312080963,1705603846845,-1500.0,0.000412,3]
[312080964,1705603846854,-151.0,0.00041211,21]
[312080965,1705603846863,-151.0,0.00041241,21]
[312080966,1705603846873,-151.0,0.0004127,21]
[312080967,1705603846882,-151.0,0.00041299,21]
[312080968,1705603846891,-150.0,0.00041309,2]
[312080969,1705603846900,-150.0,0.00041309,2]
[312080970,1705603846910,-151.0,0.00041329,21]
[312080971,1705603846919,-151.0,0.00041358,21]
[312080972,1705603846929,-219.87371404,0.00041367,4]
[312080973,1705603846938,-8752.33712952,0.00041367,4]
[312080974,1705603846948,-211.50641669,0.00041367,4]
[312080975,1705603846957,-155.41830515,0.00041367,4]
[312080976,1705603846966,-164.02625171,0.00041367,4]
[312080977,1705603846976,-2596.50137826,0.00041367,2]
[312080978,1705603846985,-876.838464,0.00041367,4]
[312080979,1705603846994,-151.0,0.00041367,7]
[312080980,1705603847003,-151.0,0.00041367,7]
[312080981,1705603847012,-3672.248617,0.00041367,7]
[312080982,1705603847021,-3672.248617,0.00041367,7]
[312080983,1705603847031,-561.4,0.00041368,30]